Cogmind - Beta 9.4 *** ADVENTURER MODE // 2020.06.15 @ 18:22:54 Player: Scyralis Result: Destroyed by S-10 Pest with Light Assault Rifle Performance ------------- Evolutions (1) 500 Regions Visited (3) 600 Robots Destroyed (21) 105 Value Destroyed (248) 248 Prototype IDs (0) 0 Alien Tech Used (0) 0 Bonus (0) 0 TOTAL SCORE: 1453 Bonus ------- None Cogmind --------- Core Integrity 0/400 Matter 270/300 Energy 100/100 System Corruption 0% Temperature Cool (0) Movement Core (100) Ox1 Location -9/Materials Parts ------- > --- POWER (1) -------- (None) > --- PROPULSION (2) --- (None) > --- UTILITY (4) ------ Visual Processing Unit Sensor Array Weapon Shielding Improved Light Armor Plating > --- WEAPON (2) ------- (None) > --- INVENTORY (4) ---- Disposable Heat Sink Peak State ------------ > --- POWER ------------ (None) > --- PROPULSION ------- (None) > --- UTILITY ---------- Small Storage Unit Compact Matter Pod Weapon Shielding Improved Light Armor Plating > --- WEAPON ----------- Pulse Rifle > --- INVENTORY -------- (None) [Rating: 11] Favorites ----------- Power Light Ion Engine Engine Light Ion Engine Propulsion Compact Wheel Treads Light Treads Wheel Compact Wheel Utility Small Storage Unit Device Sensor Array Storage Small Storage Unit Processor Visual Processing Unit Protection Weapon Shielding Weapon Grenade Launcher Energy Gun Small Laser Ballistic Gun Light Assault Rifle Launcher Grenade Launcher Build | -11 -10 -10 -9 ------- Run | Scr Mat Min Mat Slots Evolved 2 | . . . 2 Power . | . . . . Propulsion . | . . . . Utility 2 | . . . 2 Weapon . | . . . . Parts Attached 24 | 10 2 6 6 Power 1 | 1 . . . Engine 1 | 1 . . . Core . | . . . . Reactor . | . . . . Propulsion 6 | 4 . 2 . Treads 2 | 2 . . . Leg . | . . . . Wheel 4 | 2 . 2 . Hover . | . . . . Flight . | . . . . Utility 8 | 2 1 1 4 Device 1 | . . . 1 Storage 4 | 2 1 . 1 Processor 1 | . . . 1 Hackware . | . . . . Protection 2 | . . 1 1 Artifact . | . . . . Weapon 9 | 3 1 3 2 Energy Gun 5 | 2 . 1 2 Energy Cannon . | . . . . Ballistic Gun 1 | 1 . . . Ballistic Cannon . | . . . . Launcher 3 | . 1 2 . Special Weapon . | . . . . Impact Weapon . | . . . . Slashing Weapon . | . . . . Piercing Weapon . | . . . . Special Melee Weapon . | . . . . Unidentified Prototypes . | . . . . Parts Lost 11 | . . 8 3 Power 1 | . . 1 . Propulsion 4 | . . 4 . Utility 3 | . . 1 2 Weapon 3 | . . 2 1 Highest Loss Streak 8 | . . 8 2 Average Slot Usage (%) 71 | . 100 74 35 Engine 7 | . 14 8 . Wheel 15 | . 28 17 . Storage 21 | . 28 23 11 Protection 6 | . . 4 17 Energy Gun 9 | . 22 4 3 Launcher 8 | . 6 14 . Naked Turns . | . . . . Heaviest Build 15 | 14 15 15 12 Greatest Support 40 | 40 32 32 3 Greatest Overweight (x) 3 | 2 . 3 3 Average Overweight (x) . | . . . 1 Largest Inventory Capacity 8 | 8 8 6 6 Average Capacity 6 | 6 7 6 5 Most Carried 4 | 4 1 2 3 Average Carried . | . . . . Final Capacity 8 | 8 6 6 4 Final Carried 1 | . . . 1 Class Distribution -------------------- 100% | Mutant Dominant Class ---------------- Mutant | -10/Materials Mutant | -10/Mines Mutant | -9/Materials Resources | -11 -10 -10 -9 ----------- Run | Scr Mat Min Mat Matter Collected 492 | 300 40 137 15 Remotely . | . . . . Salvage Created 377 | 98 82 106 91 Parts 20 | 2 3 6 9 Haulers Intercepted . | . . . . Recyclers Shooed 1 | . . . 1 Parts Field Recycled . | . . . . Retrieved Matter . | . . . . Parts Self-Destructed . | . . . . Prevented . | . . . . Kills | -11 -10 -10 -9 ------- Run | Scr Mat Min Mat Combat Hostiles Destroyed 16 | . 2 10 4 Guns 5 | . 1 1 3 AOE 10 | . 1 9 . Classes Destroyed 7 | 2 1 1 3 Tunneler 2 | 1 . 1 . Recycler 2 | 1 . 1 . Watcher 1 | . . . 1 Swarmer 3 | . . . 3 Grunt 2 | . 2 . . Sentry 1 | . . . 1 Assembled 10 | . . 10 . Best Kill Streak 10 | 2 2 10 3 Combat Bots Only 10 | . 2 10 2 Max Kills in Single Turn 4 | 1 2 4 1 Gunslinging . | . . . . Exploded 3 | . 1 3 . Melee . | . . . . Uniques/NPCs Destroyed . | . . . . Combat | -11 -10 -10 -9 -------- Run | Scr Mat Min Mat Damage Taken 1459 | . 63 610 786 Core 628 | . 10 213 405 Absorbed by Shields . | . . . . Core Remaining (%) 55 | 100 . 10 . Volleys Fired 59 | 5 25 9 20 Largest 2 | 2 2 2 1 Hottest 90 | 90 90 70 63 Shots Fired 95 | 10 47 18 20 Gun 81 | 10 44 7 20 Cannon . | . . . . Launcher 14 | . 3 11 . Special . | . . . . Kinetic . | . . . . Thermal 81 | 10 44 7 20 Explosive 14 | . 3 11 . Electromagnetic . | . . . . Robot Hit Streak 18 | 8 3 5 18 Robot Miss Streak 3 | . 1 3 1 Penetration Max . | . . . . Secondary Targets . | . . . . Shots Hit Robots 37 | 8 3 7 19 Core Hits 37 | 3 5 24 5 Critical Hits . | . . . . Critical Kills . | . . . . Critical Parts Destroyed . | . . . . Melee Attacks . | . . . . Impact . | . . . . Slashing . | . . . . Piercing . | . . . . Sneak Attacks . | . . . . Combat Hostiles . | . . . . Follow-up Attacks . | . . . . Damage Inflicted 1229 | 95 194 610 330 Guns 499 | 95 41 33 330 Cannons . | . . . . Explosions 720 | . 153 567 . Melee . | . . . . Ramming 10 | . . 10 . Kinetic . | . . . . Thermal 548 | 95 90 33 330 Explosive 671 | . 104 567 . Electromagnetic . | . . . . Impact . | . . . . Slashing . | . . . . Piercing . | . . . . Highest Corruption 7 | . . 7 . Average Corruption 6 | . . 6 . Corruption Purged . | . . . . Effects 3 | . . 3 . Message Errors 1 | . . 1 . Matter Fused 1 | . . 1 . Energy Discharges 1 | . . 1 . Overload Shots . | . . . . Overflow Damage 23 | . 9 14 . Projectiles . | . . . . Explosions 23 | . 9 14 . Melee . | . . . . Knockbacks . | . . . . Impact . | . . . . Kinetic . | . . . . Secondary . | . . . . Self-Inflicted Damage 85 | . 33 52 . Shots 4 | . 1 3 . Rammed 3 | . . 3 . Targets Rammed 3 | . . 3 . Kicked . | . . . . Crushed . | . . . . Highest Temperature 300 | 112 300 38 59 Average Temperature 65 | 54 92 22 19 Received Heat Transfer 307 | . 24 100 183 Effects 1 | . 1 . . Matter Decay 1 | . 1 . . Siege Activations . | . . . . Robots Corrupted . | . . . . Combat Hostiles . | . . . . Parts Fried . | . . . . Impact Corruptions . | . . . . Robots Melted 1 | . . . 1 Combat Hostiles 1 | . . . 1 Parts Melted 3 | . . . 3 Heat Transferred 1176 | 248 150 75 703 Parts Sabotaged . | . . . . Parts Stolen . | . . . . Parts Stripped . | . . . . Power Chain Reactions . | . . . . Missiles Intercepted . | . . . . Alert | -11 -10 -10 -9 ------- Run | Scr Mat Min Mat Peak Influence 137 | 10 91 48 137 Average Influence 31 | 5 39 23 62 Maximum Alert Level . | . . . . Low Security (%) 100 | 100 100 100 100 Level 1 . | . . . . Level 2 . | . . . . Level 3 . | . . . . Level 4 . | . . . . Level 5 . | . . . . High Security . | . . . . Max Security . | . . . . Squads Dispatched . | . . . . Investigation . | . . . . Extermination . | . . . . Reinforcement . | . . . . Assault . | . . . . Garrison . | . . . . Intercept . | . . . . Construction Impeded . | . . . . Haulers Reinforced . | . . . . Stealth | -11 -10 -10 -9 --------- Run | Scr Mat Min Mat Distress Signals 3 | . . . 3 Communications Jammed . | . . . . Distress Signals . | . . . . Times Spotted 39 | . 2 20 17 Peak Tracking Total 13 | . 2 13 6 Tactical Retreats 5 | . . 2 3 Traps | -11 -10 -10 -9 ------- Run | Scr Mat Min Mat Traps Triggered . | . . . . Indirectly . | . . . . Trap Hack Attempts . | . . . . Triggered . | . . . . Disarmed . | . . . . Reprogrammed . | . . . . Reused . | . . . . Traps Extracted . | . . . . Installed . | . . . . Triggered . | . . . . Machines | -11 -10 -10 -9 ---------- Run | Scr Mat Min Mat Machines Disabled 5 | . 4 1 . Max in Single Turn 2 | . 2 1 . Machines Sabotaged . | . . . . Garrisons Compromised . | . . . . Overloaded Fab Kills . | . . . . Fab Network Shutdowns . | . . . . Hacking | -11 -10 -10 -9 --------- Run | Scr Mat Min Mat Machines Accessed . | . . . . Terminals . | . . . . Fabricators . | . . . . Repair Stations . | . . . . Recycling Units . | . . . . Scanalyzers . | . . . . Garrison Access . | . . . . Total Hacks . | . . . . Successful . | . . . . Failed . | . . . . Catastrophic . | . . . . Database Lockouts . | . . . . Manual . | . . . . Terminals . | . . . . Fabricators . | . . . . Repair Stations . | . . . . Recycling Units . | . . . . Scanalyzers . | . . . . Garrison Access . | . . . . Terminal Hacks . | . . . . Fabricator Hacks . | . . . . Repair Station Hacks . | . . . . Recycling Unit Hacks . | . . . . Scanalyzer . | . . . . Garrison Access Hacks . | . . . . Unauthorized Hacks . | . . . . Terminals . | . . . . Fabricators . | . . . . Repair Stations . | . . . . Recycling Units . | . . . . Scanalyzers . | . . . . Garrison Access . | . . . . Data Cores Recovered . | . . . . Used . | . . . . Hacking Detections . | . . . . Full Trace Events . | . . . . Feedback Events . | . . . . Feedback Blocked . | . . . . Robot Schematics Acquired . | . . . . Robots Built . | . . . . Matter . | . . . . Time . | . . . . Total Robot Build Rating . | . . . . Part Schematics Acquired . | . . . . Parts Built . | . . . . Matter . | . . . . Time . | . . . . Total Part Build Rating . | . . . . Parts Repaired . | . . . . Time . | . . . . Parts Recycled . | . . . . Recycled Matter . | . . . . Retrieved Matter . | . . . . Retrieved Components . | . . . . Parts Scanalyzed . | . . . . Part Schematics Acquired . | . . . . Parts Damaged . | . . . . Bothacking | -11 -10 -10 -9 ------------ Run | Scr Mat Min Mat Used RIF Installer . | . . . . Robots Hacked . | . . . . Non-combat . | . . . . Combat . | . . . . Robot Hacks Applied . | . . . . Relay Couplers Released . | . . . . Robots Rewired . | . . . . Allies Hacked . | . . . . Hacks Repelled . | . . . . Allies | -11 -10 -10 -9 -------- Run | Scr Mat Min Mat Total Allies . | . . . . Largest Group . | . . . . Highest-Rated Group . | . . . . Highest-Rated Ally . | . . . . Total Orders . | . . . . Ally Attacks . | . . . . Total Damage . | . . . . Kills . | . . . . Allies Corrupted . | . . . . Allies Melted . | . . . . Intel | -11 -10 -10 -9 ------- Run | Scr Mat Min Mat Robot Analysis Total . | . . . . Derelict Logs Recovered 1 | . . 1 . Drone Launches . | . . . . Drone Recoveries . | . . . . Exploration | -11 -10 -10 -9 ------------- Run | Scr Mat Min Mat Turns Passed 930 | 176 206 350 198 Spaces Moved 618 | 113 87 302 116 Core 242 | 24 . 102 116 Treads 43 | 43 . . . Legs . | . . . . Wheels 333 | 46 87 200 . Hover . | . . . . Flight . | . . . . Fastest Speed 50 | 50 100 80 100 Average Speed 106 | 121 100 102 107 Slowest Speed 200 | 160 100 200 200 Overloaded Moves . | . . . . Propulsion Burnouts . | . . . . Robots Hopped . | . . . . Cave-ins Triggered 1 | . . 1 . Exploration Rate (%) 29 | 8 23 78 9 Regions Visited 3 Branch Regions 1 Pre-discovered Areas 1 | . . 1 . Known Exits Taken . | . . . . Unknown Exits Taken 3 | 1 1 1 . Scrap Searched 1 | . . 1 . Spaces Dug . | . . . . Terrain Destroyed 126 | . 69 57 . Melee . | . . . . Projectile . | . . . . AOE 126 | . 69 57 . Actions | -11 -10 -10 -9 --------- Run | Scr Mat Min Mat Total 793 | 142 158 324 169 Wait 61 | . 41 . 20 Move 615 | 112 86 301 116 Hop . | . . . . Pick Up 24 | 11 2 4 7 Fast Attach . | . . . . Attach 18 | 9 . 3 6 Detach . | . . . . Swap 6 | 1 2 3 . Drop 7 | 4 2 1 . Fire 59 | 5 25 9 20 Melee . | . . . . Ram 3 | . . 3 . Kick . | . . . . Crush . | . . . . Escape Stasis . | . . . . Rewire . | . . . . Trap . | . . . . Miscellaneous . | . . . . Route ------- -11/Scrapyard -10/Materials -10/Mines -9/Materials History --------- Turn | Location | Event 42 | -11/Scrapyard | Discovered new exit (range 15) 177 | -11/Scrapyard | Entered Materials 313 | -10/Materials | Build established: Mutant 343 | -10/Materials | Discovered new exit (range 12) 383 | -10/Materials | Entered Mines 390 | -10/Mines | Met a Derelict bent on vengeance 410 | -10/Mines | Assisted by bots powering up and referring to "LRC-V3" 548 | -10/Mines | Assembled infested the area 553 | -10/Mines | Assisted by a Guerilla fighting off Assembled 622 | -10/Mines | Crushed by falling debris 645 | -10/Mines | Destroyed 10 combat bots 652 | -10/Mines | Core integrity fell below 50% 670 | -10/Mines | Lost 8 parts (1p4n1u2w) 671 | -10/Mines | Core integrity fell below 20% 716 | -10/Mines | Discovered new exit (range 7) 720 | -10/Mines | Learned location of Recycling (-7) 733 | -10/Mines | Entered Materials 733 | -9/Materials | Evolved 2 slots: Utility x2 795 | -9/Materials | Core integrity fell below 50% 854 | -9/Materials | Core integrity fell below 20% 931 | -9/Materials | Destroyed by S-10 Pest with Light Assault Rifle Last Messages --------------- 00850_ Acquired Pulse Rifle. 00856_ Y-45 Defender heat spikes uncontrollably. 00858_ Y-45 Defender heat damages Lgt. Treads. 00858_ Melted Beam Rifle. 00859_ Y-45 Defender heat damages Heat Sink, Hvy. Assault Rifle, Lgt. Treads. 00860_ Y-45 Defender heat short circuits Broken Heat Sink. 00861_ Y-45 Defender critical meltdown. [Achievement: It's Just You] 00861_ Broken Heat Sink melted. 00861_ Lgt. Armor Plating melted. 00864_ S-10 Pest destroyed. 00867_ R-06 Scavenger collects Flight Unit. 00879_ W-16 Scout destroyed. 00883_ Acquired 15 matter. 00889_ Acquired Sensor Array. 00893_ Acquired Visual Processing Unit. 00898_ Pulse Rifle severed. 00901_ Sml. Storage Unit destroyed. 00923_ Acquired Disposable Heat Sink. 00929_ W-16 Scout distress signal alerts nearby ally. Map ----- +----------------------------------------------------+ | | | | | | | | | | | | | ?????????????????????????????????????????????????? | | ?????????????????????????????????????????????????? | | ?????????????????????????????????????????????????? | | ?????????????????????????????????????????????????? | | ?????????????????????????????????????????????????? | | ?????????????????????????????????????????????????? | | ?????????????????????????????????????????????????? | | ??????????????????????????????????###########????? | | ??????????????????????????? ??????# #????? | | ??????????????????????????? ??##### #????? | | ??????????????????????????? ??# # #????? | | ??????????????????????????? ??# # #????? | | ??????????????????????# ??# # """ """ #????? | | ??????????????????????# """ ??# ? + """ """ #????? | | ??????????????????????? """ ??# # """ """ #????? | | ????????????????????????""" ??# # #????? | | ????????????????????????? ?## ###########????? | | ???????? ###############+### #?????????????? | | ??????? ss % #?????????????? | | ??????? w [ @ #?????????????? | | ??????? #?????????????? | | ???????????###############/### #?????????????? | | ????????????????????# l #######?????????????? | | ????????????????????# """ #???????????????????? | | ????????????????????# """ #?#########?????????? | | ????????????????????# """ #?# ??????????? | | ????????????????????# ? #?# #??????????? | | ????????????????????# """? #?# """ #??????????? | | ????????????????????# """ !#?# """ #??????????? | | ????????????????????# """ #?# """ #??????????? | | ????????????????????# #??? ???????????? | | ??????????????????########/########/#????????????? | | ??????????????????# """ + #????????????? | | ??????????????????# """ ########## #????????????? | | ??????????????????# """ #????????# #????????????? | | ??????????????????# #????????# #????????????? | | ??????????????????# #????????# #????????????? | | ??????????????????# #??####### ###??????????? | | ??????????????????########??#[[ [ #??????????? | | ????????????????????????????# % %! #??????????? | | ????????????????????????????#! T #??????????? | | ????????????????????????????#!![% #??????????? | | ????????????????????????????#! *% #??????????? | | ????????????????????????????#!! ### ###??????????? | +----------------------------------------------------+ Best States ------------- Heat Dissipation 28 Energy Generation 10 Energy Capacity 125 Matter Stores 300 Matter Capacity 450 Sight Range 18 Robot Scan Range 10 Terrain Scan Density 10 Armor Coverage 150 Resistance: KI 20 Resistance: TH 20 Resistance: EX 20 Resistance: EM 20 Resistance: I 20 Resistance: S 20 Resistance: P 20 Weapon Shielding 33 Evasion (%) 50 Recoil Reduction 2 Offensive Hacking 10 Item Schematics ----------------- None Robot Schematics ------------------ None Fabricated ------------ Nothing Alien Tech Used ----------------- None Achievements -------------- I Survived The Infestation It's Just You Let's See Who's Tougher Challenges ------------ None Game ------ Seed SingularityMiningLauncher Manual? 0 Play Time 00:12:12 Cumulative 3.2 hours Start 2020.06.15 @ 18:11:33 End 2020.06.15 @ 18:22:54 Sessions 1 Manual Loads 0 Difficulty Adventurer Special Mode None Game No. 4 Rogue 0 Adventurer 4 Explorer 0 Win Type - Total 0 Types 0/0/0/0/0/0/0 Lore% 2 Gallery% 12 Achievement% 10 Wizard Run 0 Options --------- ASCII 0 Keyboard 0 Movement Arrows Keybinds 0 Fullscreen 1 Font 12/Smallcaps Map View 83x54 Tactical HUD 1 Map Filters NONE Filters NONE Steam X RUN: fd7db4b7-c193-48e1-9753-f240442e7d8a